[Event "November 21 Early 2023"]
[Site "https://www.chess.com"]
[Date "2023.11.21"]
[Round "6"]
[White "Osiecki, Stanislaw"]
[Black "vinclat"]
[Result "0-1"]
[Board "175"]
[TimeControl "180+1"]
[WhiteFideId "1102990"]
[WhiteElo "2048"]
[BlackElo "2373"]
[WhiteTeam "POL"]
[WhiteClock "0:00:00"]
[BlackClock "0:00:02"]

1. e4 {[%clk 0:02:51]}  g6 {[%clk 0:02:59]} 2. d4 {[%clk 0:02:49]}  Bg7 {[%clk 0:02:58]} 3. Bc4 {[%clk 0:02:49]}  d6 {[%clk 0:02:56]} 4. Nf3 {[%clk 0:02:47]}  e6 {[%clk 0:02:52]} 5. d5 {[%clk 0:02:46]}  e5 {[%clk 0:02:52]} 6. h3 {[%clk 0:02:44]}  Nd7 {[%clk 0:02:49]} 7. O-O {[%clk 0:02:44]}  Ngf6 {[%clk 0:02:47]} 8. Bg5 {[%clk 0:02:43]}  h6 {[%clk 0:02:47]} 9. Bh4 {[%clk 0:02:43]}  g5 {[%clk 0:02:47]} 10. Bg3 {[%clk 0:02:43]}  Nh5 {[%clk 0:02:47]} 11. Bh2 {[%clk 0:02:43]}  O-O {[%clk 0:02:46]} 12. Bd3 {[%clk 0:02:39]}  Nf4 {[%clk 0:02:46]} 13. Bxf4 {[%clk 0:02:39]}  exf4 {[%clk 0:02:41]} 14. c3 {[%clk 0:02:33]}  Nc5 {[%clk 0:02:28]} 15. Bc2 {[%clk 0:02:32]}  g4 {[%clk 0:02:19]} 16. hxg4 {[%clk 0:02:30]}  Bxg4 {[%clk 0:02:20]} 17. Nbd2 {[%clk 0:02:30]}  Qf6 {[%clk 0:02:17]} 18. Qe1 {[%clk 0:02:25]}  Rae8 {[%clk 0:02:17]} 19. Nd4 {[%clk 0:02:19]}  h5 {[%clk 0:02:09]} 20. f3 {[%clk 0:02:18]}  Bd7 {[%clk 0:02:06]} 21. b4 {[%clk 0:01:45]}  Na6 {[%clk 0:02:02]} 22. N2b3 {[%clk 0:01:29]}  Bh6 {[%clk 0:01:55]} 23. Kf2 {[%clk 0:01:23]}  c5 {[%clk 0:01:19]} 24. dxc6 {[%clk 0:01:16]}  bxc6 {[%clk 0:01:19]} 25. Rh1 {[%clk 0:01:07]}  Bg5 {[%clk 0:01:11]} 26. Qd2 {[%clk 0:00:49]}  h4 {[%clk 0:00:52]} 27. a4 {[%clk 0:00:46]}  c5 {[%clk 0:00:46]} 28. bxc5 {[%clk 0:00:42]}  dxc5 {[%clk 0:00:47]} 29. Ne2 {[%clk 0:00:41]}  Rd8 {[%clk 0:00:42]} 30. Qc1 {[%clk 0:00:34]}  Be6 {[%clk 0:00:31]} 31. Qa3 {[%clk 0:00:33]}  Qe5 {[%clk 0:00:26]} 32. Rad1 {[%clk 0:00:30]}  h3 {[%clk 0:00:22]} 33. gxh3 {[%clk 0:00:29]}  Bh4+ {[%clk 0:00:22]} 34. Kf1 {[%clk 0:00:28]}  Rxd1+ {[%clk 0:00:20]} 35. Bxd1 {[%clk 0:00:27]}  Kh7 {[%clk 0:00:18]} 36. Nd2 {[%clk 0:00:24]}  Rd8 {[%clk 0:00:17]} 37. Qb2 {[%clk 0:00:22]}  Bg3 {[%clk 0:00:10]} 38. Nxg3 {[%clk 0:00:21]}  fxg3 {[%clk 0:00:10]} 39. Kg2 {[%clk 0:00:21]}  Qf4 {[%clk 0:00:10]} 40. Nb1 {[%clk 0:00:19]}  Rd3 {[%clk 0:00:05]} 41. Be2 {[%clk 0:00:18]}  Re3 {[%clk 0:00:05]} 42. Re1 {[%clk 0:00:17]}  Qh4 {[%clk 0:00:03]} 43. Rh1 {[%clk 0:00:15]}  c4 {[%clk 0:00:02]} 44. Qd2 {[%clk 0:00:14]}  Rd3 {[%clk 0:00:01]} 45. Bxd3 {[%clk 0:00:14]}  cxd3 {[%clk 0:00:02]} 46. Qxd3 {[%clk 0:00:14]}  Nc5 {[%clk 0:00:03]} 47. Qd6 {[%clk 0:00:13]}  Nb3 {[%clk 0:00:03]} 48. Qxg3 {[%clk 0:00:13]}  Qh6 {[%clk 0:00:02]} 49. f4 {[%clk 0:00:13]}  Nc5 {[%clk 0:00:02]} 50. Qg5 {[%clk 0:00:12]}  Qxg5+ {[%clk 0:00:02]} 51. fxg5 {[%clk 0:00:12]}  Nxe4 {[%clk 0:00:03]} 52. h4 {[%clk 0:00:11]}  Bd5 {[%clk 0:00:03]} 53. Kh3 {[%clk 0:00:10]}  Nf2+ {[%clk 0:00:03]} 54. Kh2 {[%clk 0:00:10]}  Nxh1 {[%clk 0:00:03]} 55. c4 {[%clk 0:00:09]}  Bc6 {[%clk 0:00:03]} 56. Nc3 {[%clk 0:00:06]}  Nf2 {[%clk 0:00:03]} 57. Kg3 {[%clk 0:00:03]}  Ne4+ {[%clk 0:00:03]} 58. Nxe4 {[%clk 0:00:02]}  Bxe4 {[%clk 0:00:04]} 59. Kf4 {[%clk 0:00:02]}  Bc6 {[%clk 0:00:02]} 60. a5 {[%clk 0:00:02]}  Kg6 {[%clk 0:00:02]} 61. Ke5 {[%clk 0:00:02]}  Kh5 {[%clk 0:00:03]} 62. Kd6 {[%clk 0:00:03]}  Bf3 {[%clk 0:00:02]} 63. c5 {[%clk 0:00:03]}  Kxh4 {[%clk 0:00:02]} 64. c6 {[%clk 0:00:00]}  Kxg5 {[%clk 0:00:02]} 0-1

[Event "November 21 Early 2023"]
[Site "https://www.chess.com"]
[Date "2023.11.21"]
[Round "6"]
[White "Filippova, Margarita"]
[Black "dumbernugget"]
[Result "0-1"]
[Board "176"]
[TimeControl "180+1"]
[WhiteFideId "34199680"]
[WhiteElo "1916"]
[BlackElo "1938"]
[WhiteTeam "RUS"]
[WhiteClock "0:00:24"]
[BlackClock "0:01:05"]

1. e4 {[%clk 0:03:00]}  c5 {[%clk 0:02:59]} 2. Nf3 {[%clk 0:03:00]}  d6 {[%clk 0:03:00]} 3. d4 {[%clk 0:03:00]}  cxd4 {[%clk 0:03:01]} 4. Qxd4 {[%clk 0:03:01]}  Nf6 {[%clk 0:03:01]} 5. Nc3 {[%clk 0:03:01]}  Nc6 {[%clk 0:03:02]} 6. Bb5 {[%clk 0:03:01]}  Bd7 {[%clk 0:03:02]} 7. Bxc6 {[%clk 0:03:01]}  Bxc6 {[%clk 0:03:02]} 8. Bg5 {[%clk 0:03:02]}  e6 {[%clk 0:02:52]} 9. O-O-O {[%clk 0:03:01]}  Be7 {[%clk 0:02:51]} 10. Qd3 {[%clk 0:03:01]}  Qc7 {[%clk 0:02:49]} 11. Nd4 {[%clk 0:02:54]}  d5 {[%clk 0:02:44]} 12. Nxc6 {[%clk 0:02:31]}  bxc6 {[%clk 0:02:42]} 13. exd5 {[%clk 0:02:09]}  cxd5 {[%clk 0:02:40]} 14. Bxf6 {[%clk 0:02:08]}  Bxf6 {[%clk 0:02:39]} 15. Qb5+ {[%clk 0:02:08]}  Qd7 {[%clk 0:02:35]} 16. Qxd7+ {[%clk 0:02:01]}  Kxd7 {[%clk 0:02:36]} 17. Ne4 {[%clk 0:01:59]}  Be7 {[%clk 0:02:34]} 18. b3 {[%clk 0:01:57]}  Kc7 {[%clk 0:02:28]} 19. Nc3 {[%clk 0:01:56]}  Bf6 {[%clk 0:02:26]} 20. Rd3 {[%clk 0:01:49]}  Rac8 {[%clk 0:02:23]} 21. a4 {[%clk 0:01:49]}  Kb7 {[%clk 0:02:21]} 22. Nb5 {[%clk 0:01:49]}  Rc6 {[%clk 0:02:20]} 23. Kb1 {[%clk 0:01:37]}  Rhc8 {[%clk 0:02:19]} 24. Rc1 {[%clk 0:01:32]}  a6 {[%clk 0:02:15]} 25. Nd4 {[%clk 0:01:28]}  R6c7 {[%clk 0:02:06]} 26. g3 {[%clk 0:01:23]}  e5 {[%clk 0:01:59]} 27. Nf5 {[%clk 0:01:19]}  Kc6 {[%clk 0:01:45]} 28. c4 {[%clk 0:01:17]}  d4 {[%clk 0:01:38]} 29. f4 {[%clk 0:01:17]}  e4 {[%clk 0:01:31]} 30. Rxd4 {[%clk 0:01:08]}  Bxd4 {[%clk 0:01:29]} 31. Nxd4+ {[%clk 0:01:09]}  Kc5 {[%clk 0:01:28]} 32. Nc2 {[%clk 0:01:09]}  Rd8 {[%clk 0:01:24]} 33. Kb2 {[%clk 0:01:06]}  a5 {[%clk 0:01:22]} 34. Ne3 {[%clk 0:00:59]}  Rd3 {[%clk 0:01:20]} 35. Nd5 {[%clk 0:00:56]}  Rb7 {[%clk 0:01:20]} 36. Rc3 {[%clk 0:00:56]}  Rxc3 {[%clk 0:01:15]} 37. Kxc3 {[%clk 0:00:57]}  f5 {[%clk 0:01:13]} 38. Ne3 {[%clk 0:00:55]}  g6 {[%clk 0:01:11]} 39. Nd5 {[%clk 0:00:55]}  Rd7 {[%clk 0:01:10]} 40. h4 {[%clk 0:00:44]}  h5 {[%clk 0:01:09]} 41. Kd2 {[%clk 0:00:34]}  Rxd5+ {[%clk 0:01:09]} 42. cxd5 {[%clk 0:00:34]}  Kxd5 {[%clk 0:01:09]} 43. Kc3 {[%clk 0:00:34]}  Kc5 {[%clk 0:01:09]} 44. Kc2 {[%clk 0:00:29]}  Kb4 {[%clk 0:01:04]} 45. Kb2 {[%clk 0:00:28]}  e3 {[%clk 0:01:03]} 46. Kc2 {[%clk 0:00:29]}  e2 {[%clk 0:01:03]} 47. Kd2 {[%clk 0:00:29]}  Kxb3 {[%clk 0:01:04]} 48. Kxe2 {[%clk 0:00:29]}  Kxa4 {[%clk 0:01:04]} 49. Kd1 {[%clk 0:00:26]}  Kb3 {[%clk 0:01:05]} 50. Kc1 {[%clk 0:00:26]}  Kc3 {[%clk 0:01:05]} 51. Kb1 {[%clk 0:00:26]}  Kd3 {[%clk 0:01:05]} 52. Ka2 {[%clk 0:00:27]}  Ke3 {[%clk 0:01:05]} 53. Ka3 {[%clk 0:00:28]}  Kf3 {[%clk 0:01:05]} 54. Ka4 {[%clk 0:00:29]}  Kxg3 {[%clk 0:01:05]} 55. Kxa5 {[%clk 0:00:24]}  Kxf4 {[%clk 0:01:05]} 0-1

[Event "November 21 Early 2023"]
[Site "https://www.chess.com"]
[Date "2023.11.21"]
[Round "6"]
[White "Dilmukhametov, Artur"]
[Black "Shapiro, Daniel"]
[Result "0-1"]
[Board "180"]
[TimeControl "180+1"]
[WhiteFideId "24179922"]
[BlackFideId "2001780"]
[WhiteElo "2176"]
[BlackElo "2320"]
[WhiteTeam "RUS"]
[BlackTeam "USA"]
[WhiteClock "0:00:00"]
[BlackClock "0:00:34"]

1. e4 {[%clk 0:03:00]}  c5 {[%clk 0:02:59]} 2. d4 {[%clk 0:03:00]}  cxd4 {[%clk 0:02:58]} 3. c3 {[%clk 0:03:01]}  dxc3 {[%clk 0:02:58]} 4. Nxc3 {[%clk 0:03:02]}  Nc6 {[%clk 0:02:57]} 5. Nf3 {[%clk 0:03:03]}  d6 {[%clk 0:02:57]} 6. Bc4 {[%clk 0:03:03]}  a6 {[%clk 0:02:57]} 7. O-O {[%clk 0:03:03]}  Nf6 {[%clk 0:02:57]} 8. h3 {[%clk 0:03:00]}  e6 {[%clk 0:02:53]} 9. Qe2 {[%clk 0:03:00]}  b5 {[%clk 0:02:39]} 10. Bb3 {[%clk 0:02:59]}  Bb7 {[%clk 0:02:25]} 11. Rd1 {[%clk 0:02:59]}  Qb8 {[%clk 0:02:25]} 12. Bf4 {[%clk 0:02:48]}  Ne5 {[%clk 0:02:23]} 13. Nxe5 {[%clk 0:02:32]}  dxe5 {[%clk 0:02:22]} 14. Bg5 {[%clk 0:02:33]}  Be7 {[%clk 0:02:17]} 15. Rac1 {[%clk 0:02:25]}  O-O {[%clk 0:02:16]} 16. Bxf6 {[%clk 0:02:02]}  Bxf6 {[%clk 0:02:12]} 17. Rd7 {[%clk 0:02:02]}  Bc6 {[%clk 0:02:06]} 18. Rd3 {[%clk 0:01:59]}  Qb7 {[%clk 0:02:05]} 19. Rg3 {[%clk 0:01:27]}  b4 {[%clk 0:01:53]} 20. Na4 {[%clk 0:01:26]}  Rac8 {[%clk 0:01:31]} 21. Nc5 {[%clk 0:01:18]}  Qa7 {[%clk 0:01:29]} 22. Qf3 {[%clk 0:01:11]}  Kh8 {[%clk 0:01:27]} 23. h4 {[%clk 0:01:01]}  Bb5 {[%clk 0:01:24]} 24. Nd3 {[%clk 0:00:57]}  Qd4 {[%clk 0:01:18]} 25. Rd1 {[%clk 0:00:52]}  Rcd8 {[%clk 0:00:56]} 26. h5 {[%clk 0:00:24]}  h6 {[%clk 0:00:56]} 27. Qg4 {[%clk 0:00:17]}  a5 {[%clk 0:00:46]} 28. Nf4 {[%clk 0:00:14]}  Qxb2 {[%clk 0:00:40]} 29. Rxd8 {[%clk 0:00:02]}  Rxd8 {[%clk 0:00:39]} 30. Bxe6 {[%clk 0:00:02]}  Qc1+ {[%clk 0:00:34]} 31. Kh2 {[%clk 0:00:02]}  Qxf4 {[%clk 0:00:34]} 32. Qxf4 {[%clk 0:00:00]}  exf4 {[%clk 0:00:34]} 0-1

[Event "November 21 Early 2023"]
[Site "https://www.chess.com"]
[Date "2023.11.21"]
[Round "6"]
[White "Pak, Yevgeniy"]
[Black "Rian, Kapriaga"]
[Result "0-1"]
[Board "181"]
[TimeControl "180+1"]
[WhiteFideId "14201712"]
[BlackFideId "7103263"]
[WhiteElo "2320"]
[BlackElo "2298"]
[WhiteTeam "KAZ"]
[BlackTeam "INA"]
[WhiteClock "0:00:00"]
[BlackClock "0:01:25"]

1. e4 {[%clk 0:02:18]}  c6 {[%clk 0:02:56]} 2. d4 {[%clk 0:02:17]}  d5 {[%clk 0:02:55]} 3. f3 {[%clk 0:02:17]}  e6 {[%clk 0:02:54]} 4. Nc3 {[%clk 0:02:14]}  Bb4 {[%clk 0:02:54]} 5. a3 {[%clk 0:02:11]}  Bxc3+ {[%clk 0:02:53]} 6. bxc3 {[%clk 0:02:11]}  b6 {[%clk 0:02:54]} 7. c4 {[%clk 0:02:04]}  Ba6 {[%clk 0:02:53]} 8. cxd5 {[%clk 0:02:01]}  cxd5 {[%clk 0:02:52]} 9. Bxa6 {[%clk 0:02:00]}  Nxa6 {[%clk 0:02:51]} 10. c3 {[%clk 0:01:55]}  Qd7 {[%clk 0:02:42]} 11. Bf4 {[%clk 0:01:52]}  Rc8 {[%clk 0:02:42]} 12. Qd3 {[%clk 0:01:49]}  Nb8 {[%clk 0:02:39]} 13. Ne2 {[%clk 0:01:44]}  Nc6 {[%clk 0:02:40]} 14. O-O {[%clk 0:01:44]}  Na5 {[%clk 0:02:40]} 15. Rfe1 {[%clk 0:01:39]}  Ne7 {[%clk 0:02:40]} 16. Ng3 {[%clk 0:01:36]}  O-O {[%clk 0:02:36]} 17. exd5 {[%clk 0:01:28]}  Nxd5 {[%clk 0:02:36]} 18. Bd2 {[%clk 0:01:26]}  Nb3 {[%clk 0:02:27]} 19. Rab1 {[%clk 0:01:24]}  Nxd2 {[%clk 0:02:27]} 20. Qxd2 {[%clk 0:01:22]}  Rxc3 {[%clk 0:02:26]} 21. Qb2 {[%clk 0:00:56]}  Rfc8 {[%clk 0:02:24]} 22. Ne4 {[%clk 0:00:56]}  Rc2 {[%clk 0:02:23]} 23. Qb3 {[%clk 0:00:51]}  Nf4 {[%clk 0:02:21]} 24. Qe3 {[%clk 0:00:44]}  Nxg2 {[%clk 0:02:17]} 25. Qg5 {[%clk 0:00:39]}  Qxd4+ {[%clk 0:02:08]} 26. Kh1 {[%clk 0:00:37]}  Nxe1 {[%clk 0:02:07]} 27. Rxe1 {[%clk 0:00:31]}  h6 {[%clk 0:02:07]} 28. Qg3 {[%clk 0:00:27]}  f5 {[%clk 0:01:58]} 29. Nd6 {[%clk 0:00:26]}  f4 {[%clk 0:01:52]} 30. Qg4 {[%clk 0:00:18]}  Qxd6 {[%clk 0:01:49]} 31. Rg1 {[%clk 0:00:14]}  R8c7 {[%clk 0:01:45]} 32. Qg6 {[%clk 0:00:10]}  Qc6 {[%clk 0:01:36]} 33. Qd3 {[%clk 0:00:00]}  Qd5 {[%clk 0:01:25]} 0-1

[Event "November 21 Early 2023"]
[Site "https://www.chess.com"]
[Date "2023.11.21"]
[Round "6"]
[White "RodokininEV"]
[Black "Vlasova, Nataliya"]
[Result "1-0"]
[Board "182"]
[TimeControl "180+1"]
[BlackFideId "4122682"]
[WhiteElo "2517"]
[BlackElo "1939"]
[BlackTeam "RUS"]
[WhiteClock "0:00:17"]
[BlackClock "0:00:23"]

1. d4 {[%clk 0:03:00]}  Nf6 {[%clk 0:02:59]} 2. c4 {[%clk 0:02:59]}  g6 {[%clk 0:02:59]} 3. Nc3 {[%clk 0:02:59]}  Bg7 {[%clk 0:03:00]} 4. e4 {[%clk 0:02:59]}  d6 {[%clk 0:03:01]} 5. Be2 {[%clk 0:02:58]}  O-O {[%clk 0:03:00]} 6. Nf3 {[%clk 0:02:59]}  Nc6 {[%clk 0:03:00]} 7. d5 {[%clk 0:02:58]}  Ne5 {[%clk 0:02:57]} 8. Nxe5 {[%clk 0:02:58]}  dxe5 {[%clk 0:02:58]} 9. c5 {[%clk 0:02:59]}  Nd7 {[%clk 0:02:58]} 10. Be3 {[%clk 0:02:57]}  f5 {[%clk 0:02:58]} 11. f3 {[%clk 0:02:56]}  f4 {[%clk 0:02:53]} 12. Bf2 {[%clk 0:02:56]}  g5 {[%clk 0:02:54]} 13. b4 {[%clk 0:02:52]}  h5 {[%clk 0:02:54]} 14. Qb3 {[%clk 0:02:52]}  Kh8 {[%clk 0:02:53]} 15. O-O {[%clk 0:02:48]}  Nf6 {[%clk 0:02:51]} 16. Rfd1 {[%clk 0:02:47]}  g4 {[%clk 0:02:51]} 17. Rac1 {[%clk 0:02:42]}  Qe8 {[%clk 0:02:50]} 18. Nb5 {[%clk 0:02:40]}  Qd7 {[%clk 0:02:46]} 19. c6 {[%clk 0:02:36]}  Qd8 {[%clk 0:02:28]} 20. cxb7 {[%clk 0:02:27]}  Bxb7 {[%clk 0:02:28]} 21. Nxc7 {[%clk 0:02:26]}  Nxe4 {[%clk 0:02:15]} 22. fxe4 {[%clk 0:02:24]}  f3 {[%clk 0:02:14]} 23. gxf3 {[%clk 0:02:19]}  Bh6 {[%clk 0:02:09]} 24. Ne6 {[%clk 0:02:10]}  Qe8 {[%clk 0:02:08]} 25. Be3 {[%clk 0:02:06]}  gxf3 {[%clk 0:01:43]} 26. Bxh6 {[%clk 0:02:00]}  fxe2 {[%clk 0:01:36]} 27. Bxf8 {[%clk 0:01:51]}  Qg6+ {[%clk 0:01:28]} 28. Kf2 {[%clk 0:01:44]}  exd1=Q {[%clk 0:01:27]} 29. Rxd1 {[%clk 0:01:45]}  Rxf8+ {[%clk 0:01:21]} 30. Nxf8 {[%clk 0:01:45]}  Qf6+ {[%clk 0:01:21]} 31. Ke2 {[%clk 0:01:41]}  Qxf8 {[%clk 0:01:21]} 32. Qf3 {[%clk 0:01:36]}  Ba6+ {[%clk 0:01:11]} 33. Kf2 {[%clk 0:01:27]}  Qh6 {[%clk 0:01:06]} 34. a4 {[%clk 0:01:07]}  Qb6+ {[%clk 0:00:58]} 35. Qe3 {[%clk 0:01:01]}  Qf6+ {[%clk 0:00:57]} 36. Kg2 {[%clk 0:00:57]}  Qh4 {[%clk 0:00:55]} 37. Qh6+ {[%clk 0:00:54]}  Kg8 {[%clk 0:00:52]} 38. Qg6+ {[%clk 0:00:53]}  Kh8 {[%clk 0:00:50]} 39. Rc1 {[%clk 0:00:45]}  Qf4 {[%clk 0:00:42]} 40. Qe8+ {[%clk 0:00:41]}  Kh7 {[%clk 0:00:37]} 41. Qxe7+ {[%clk 0:00:41]}  Kh8 {[%clk 0:00:37]} 42. Qd8+ {[%clk 0:00:24]}  Kg7 {[%clk 0:00:33]} 43. Rc7+ {[%clk 0:00:20]}  Kh6 {[%clk 0:00:27]} 44. Qh8+ {[%clk 0:00:19]}  Kg5 {[%clk 0:00:27]} 45. Rg7+ {[%clk 0:00:19]}  Kh4 {[%clk 0:00:23]} 46. Qd8+ {[%clk 0:00:17]} 1-0

[Event "November 21 Early 2023"]
[Site "https://www.chess.com"]
[Date "2023.11.21"]
[Round "6"]
[White "Nekoo04"]
[Black "Mystery2007"]
[Result "0-1"]
[Board "183"]
[TimeControl "180+1"]
[WhiteElo "2278"]
[BlackElo "2503"]
[WhiteClock "0:00:01"]
[BlackClock "0:00:54"]

1. d4 {[%clk 0:03:00]}  a5 {[%clk 0:02:59]} 2. e4 {[%clk 0:02:57]}  c6 {[%clk 0:02:59]} 3. Bd3 {[%clk 0:02:52]}  d5 {[%clk 0:02:59]} 4. exd5 {[%clk 0:02:48]}  Qxd5 {[%clk 0:02:57]} 5. Nf3 {[%clk 0:02:35]}  Bg4 {[%clk 0:02:56]} 6. Nbd2 {[%clk 0:02:35]}  Nf6 {[%clk 0:02:53]} 7. h3 {[%clk 0:02:34]}  Bf5 {[%clk 0:02:49]} 8. c4 {[%clk 0:02:31]}  Qe6+ {[%clk 0:02:49]} 9. Be2 {[%clk 0:02:29]}  Bd3 {[%clk 0:02:36]} 10. Ne5 {[%clk 0:02:08]}  Bxe2 {[%clk 0:02:35]} 11. Qxe2 {[%clk 0:02:09]}  Nbd7 {[%clk 0:02:34]} 12. f4 {[%clk 0:02:03]}  g6 {[%clk 0:02:30]} 13. O-O {[%clk 0:01:53]}  Bg7 {[%clk 0:02:27]} 14. Ndf3 {[%clk 0:01:49]}  O-O {[%clk 0:02:21]} 15. Ng5 {[%clk 0:01:46]}  Qd6 {[%clk 0:02:22]} 16. Be3 {[%clk 0:01:41]}  e6 {[%clk 0:02:16]} 17. Rad1 {[%clk 0:01:05]}  h6 {[%clk 0:02:15]} 18. Ngf3 {[%clk 0:01:01]}  Ne4 {[%clk 0:02:09]} 19. Rfe1 {[%clk 0:01:00]}  Rad8 {[%clk 0:01:58]} 20. Qc2 {[%clk 0:00:49]}  Ng3 {[%clk 0:01:51]} 21. Bf2 {[%clk 0:00:24]}  Nh5 {[%clk 0:01:42]} 22. Qc1 {[%clk 0:00:10]}  Qc7 {[%clk 0:01:38]} 23. g4 {[%clk 0:00:06]}  Nhf6 {[%clk 0:01:38]} 24. g5 {[%clk 0:00:06]}  Nh5 {[%clk 0:01:37]} 25. Re4 {[%clk 0:00:04]}  Nb6 {[%clk 0:01:24]} 26. Kg2 {[%clk 0:00:03]}  hxg5 {[%clk 0:01:21]} 27. fxg5 {[%clk 0:00:03]}  Qe7 {[%clk 0:01:11]} 28. b3 {[%clk 0:00:02]}  Nc8 {[%clk 0:01:05]} 29. Ree1 {[%clk 0:00:02]}  Nd6 {[%clk 0:01:06]} 30. Qe3 {[%clk 0:00:02]}  Nf5 {[%clk 0:01:06]} 31. Qe4 {[%clk 0:00:01]}  a4 {[%clk 0:01:00]} 32. Nh2 {[%clk 0:00:02]}  axb3 {[%clk 0:00:55]} 33. axb3 {[%clk 0:00:03]}  Ra8 {[%clk 0:00:56]} 34. Nhg4 {[%clk 0:00:03]}  Ra2 {[%clk 0:00:55]} 35. Re2 {[%clk 0:00:03]}  Rxe2 {[%clk 0:00:54]} 36. Qxe2 {[%clk 0:00:01]}  Nf4+ {[%clk 0:00:54]} 0-1

[Event "November 21 Early 2023"]
[Site "https://www.chess.com"]
[Date "2023.11.21"]
[Round "6"]
[White "Nissinen, Niilo Man"]
[Black "danshev16"]
[Result "0-1"]
[Board "184"]
[TimeControl "180+1"]
[WhiteFideId "30950767"]
[WhiteElo "1854"]
[BlackElo "2496"]
[WhiteTeam "HKG"]
[WhiteClock "0:00:00"]
[BlackClock "0:01:16"]

1. e4 {[%clk 0:03:00]}  c6 {[%clk 0:03:00]} 2. d4 {[%clk 0:03:00]}  d6 {[%clk 0:02:58]} 3. Nf3 {[%clk 0:02:59]}  Nd7 {[%clk 0:02:56]} 4. Nc3 {[%clk 0:02:59]}  h6 {[%clk 0:02:56]} 5. a4 {[%clk 0:02:58]}  g5 {[%clk 0:02:56]} 6. Bc4 {[%clk 0:02:53]}  Bg7 {[%clk 0:02:56]} 7. Be3 {[%clk 0:02:43]}  Nf8 {[%clk 0:02:52]} 8. Ne2 {[%clk 0:02:33]}  Ng6 {[%clk 0:02:49]} 9. Ng3 {[%clk 0:02:10]}  Nf6 {[%clk 0:02:49]} 10. O-O {[%clk 0:02:06]}  g4 {[%clk 0:02:39]} 11. Nd2 {[%clk 0:02:04]}  h5 {[%clk 0:02:40]} 12. Nf5 {[%clk 0:01:58]}  Bxf5 {[%clk 0:02:39]} 13. exf5 {[%clk 0:01:59]}  Nh4 {[%clk 0:02:35]} 14. Bd3 {[%clk 0:01:15]}  Qd7 {[%clk 0:02:35]} 15. Bg5 {[%clk 0:00:45]}  Nxf5 {[%clk 0:02:35]} 16. c3 {[%clk 0:00:45]}  O-O-O {[%clk 0:02:13]} 17. a5 {[%clk 0:00:45]}  a6 {[%clk 0:02:11]} 18. Nc4 {[%clk 0:00:44]}  Kb8 {[%clk 0:02:11]} 19. Nb6 {[%clk 0:00:41]}  Qe6 {[%clk 0:01:48]} 20. Re1 {[%clk 0:00:40]}  Ne4 {[%clk 0:01:48]} 21. Rxe4 {[%clk 0:00:33]}  Qg6 {[%clk 0:01:47]} 22. Qd2 {[%clk 0:00:31]}  f6 {[%clk 0:01:41]} 23. Bf4 {[%clk 0:00:28]}  e5 {[%clk 0:01:41]} 24. Be3 {[%clk 0:00:20]}  d5 {[%clk 0:01:41]} 25. Qc2 {[%clk 0:00:15]}  Nxe3 {[%clk 0:01:38]} 26. Rxe3 {[%clk 0:00:14]}  e4 {[%clk 0:01:38]} 27. Bf1 {[%clk 0:00:13]}  Bh6 {[%clk 0:01:38]} 28. Ree1 {[%clk 0:00:13]}  f5 {[%clk 0:01:39]} 29. b4 {[%clk 0:00:13]}  f4 {[%clk 0:01:38]} 30. b5 {[%clk 0:00:14]}  cxb5 {[%clk 0:01:37]} 31. c4 {[%clk 0:00:06]}  dxc4 {[%clk 0:01:36]} 32. Rxe4 {[%clk 0:00:06]}  Rxd4 {[%clk 0:01:33]} 33. Rae1 {[%clk 0:00:03]}  Rhd8 {[%clk 0:01:31]} 34. Rxd4 {[%clk 0:00:02]}  Qxc2 {[%clk 0:01:29]} 35. Rxd8+ {[%clk 0:00:01]}  Kc7 {[%clk 0:01:29]} 36. Rc8+ {[%clk 0:00:02]}  Kd6 {[%clk 0:01:29]} 37. Rd8+ {[%clk 0:00:01]}  Kc5 {[%clk 0:01:29]} 38. Red1 {[%clk 0:00:01]}  g3 {[%clk 0:01:27]} 39. R8d5+ {[%clk 0:00:01]}  Kb4 {[%clk 0:01:27]} 40. Rd6 {[%clk 0:00:01]}  Qxf2+ {[%clk 0:01:25]} 41. Kh1 {[%clk 0:00:01]}  Bf8 {[%clk 0:01:23]} 42. Rb1+ {[%clk 0:00:02]}  Kxa5 {[%clk 0:01:18]} 43. Rc6 {[%clk 0:00:00]}  bxc6 {[%clk 0:01:16]} 0-1